Cogmind - Beta 16.1 @@@ ROGUE MODE // 2026.02.21 @ 12:27:53 Player: Bikerider58 Result: Destroyed by 14-U94(R) with Subdweller Laser Performance ------------- Evolutions (0) 0 Regions Visited (2) 400 Robots Destroyed (28) 140 Value Destroyed (524) 524 Prototype IDs (0) 0 Alien Tech Used (0) 0 Bonus (0) 0 TOTAL SCORE: 1064 Bonus ------- None Cogmind --------- Core Integrity 0/250 Matter 219/300 Energy 99/100 System Corruption 1% Temperature Cool (6) Movement Treading (160) Location -10/Subcaves Parts ------- > --- POWER (1) -------- (None) > --- PROPULSION (2) --- Light Treads Light Treads > --- UTILITY (2) ------ Large Storage Unit Improved Terrain Scanner > --- WEAPON (2) ------- Light Assault Rifle Light Assault Rifle > --- INVENTORY (15) --- Ion Engine Wheel Improved Heat Sink Huge Storage Unit Seismic Detector Seismic Detector Hacking Suite Light Assault Rifle Light Assault Rifle Grenade Launcher Mining Laser Peak State ------------ > --- POWER ------------ Ion Engine > --- PROPULSION ------- Light Treads Light Treads > --- UTILITY ---------- Large Storage Unit Improved Terrain Scanner > --- WEAPON ----------- Medium Laser Assault Rifle > --- INVENTORY -------- Ion Engine Light Treads Light Treads Wheel Improved Heat Sink Huge Storage Unit Seismic Detector Seismic Detector Hacking Suite Light Assault Rifle Light Assault Rifle Light Assault Rifle Light Assault Rifle Grenade Launcher Mining Laser [Rating: 10] Favorites ----------- Power Light Ion Engine Engine Light Ion Engine Propulsion Light Treads Treads Light Treads Wheel Wheel Utility Seismic Detector Device Seismic Detector Storage Huge Storage Unit Weapon Assault Rifle Energy Gun Medium Laser Ballistic Gun Assault Rifle Special Weapon Mining Laser Build | -11 -10 -10 ------- Run | Yrd Mat Sub Slots Evolved . | . . . Power . | . . . Propulsion . | . . . Utility . | . . . Weapon . | . . . Parts Attached 17 | 7 6 4 Power 2 | 1 1 . Engine 2 | 1 1 . Core . | . . . Reactor . | . . . Propulsion 5 | 2 2 1 Treads 4 | 2 1 1 Leg . | . . . Wheel 1 | . 1 . Hover . | . . . Flight . | . . . Utility 5 | 2 2 1 Device 2 | 1 . 1 Storage 3 | 1 2 . Processor . | . . . Hackware . | . . . Protection . | . . . Artifact . | . . . Weapon 5 | 2 1 2 Energy Gun 1 | 1 . . Energy Cannon . | . . . Ballistic Gun 3 | 1 . 2 Ballistic Cannon . | . . . Launcher . | . . . Special Weapon 1 | . 1 . Impact Weapon . | . . . Slashing Weapon . | . . . Piercing Weapon . | . . . Special Melee Weapon . | . . . Unidentified Prototypes . | . . . Parts Lost 6 | . 1 5 Power 2 | . 1 1 Propulsion 2 | . . 2 Utility . | . . . Weapon 2 | . . 2 Highest Loss Streak 5 | . 1 5 To Critical Strikes . | . . . Average Backups 10 | 1 10 14 Power . | . . 1 Propulsion 2 | . 2 2 Utility 2 | . 2 5 Weapon 4 | 1 5 5 Tool/Special . | . . . Unused Backups 13 | . 5 8 Power 2 | . 1 1 Propulsion 3 | . 2 1 Utility 4 | . 1 3 Weapon 3 | . . 3 Tool/Special 1 | . 1 . Average Slot Usage (%) 98 | . 99 97 Engine 13 | . 13 12 Treads 18 | . 17 27 Wheel 8 | . 9 . Device 14 | . 14 14 Storage 14 | . 14 14 Energy Gun 13 | . 13 11 Ballistic Gun 14 | . 14 16 Peak Build Rating 10 | 7 9 10 Average Rating 7 | 5 7 9 On Entrance 5 | . 7 9 Avg Prop Armor Cover (%) 11 | . 11 . Naked Turns . | . . . Heaviest Build 90 | 13 90 30 Greatest Support 40 | 40 40 40 Greatest Overweight (x) 8 | . 8 . Average Overweight (x) 4 | . 5 . Largest Inventory Capacity 25 | 8 25 15 Average Capacity 20 | 7 21 15 Most Carried 18 | 2 18 15 Average Carried 10 | 1 10 14 Final Capacity 15 | 8 15 15 Final Carried 15 | 2 15 11 Class Distribution -------------------- 100% | Mutant Dominant Class ---------------- Mutant | -10/Materials Mutant | -10/Subcaves Resources | -11 -10 -10 ----------- Run | Yrd Mat Sub Matter Collected 630 | 285 345 . Remotely . | . . . Salvage Created 876 | 67 777 32 Parts 67 | 7 59 1 Haulers Intercepted 2 | . 2 . Recyclers Shooed 2 | . 2 . Parts Field Recycled . | . . . Retrieved Matter . | . . . Parts Self-Destructed 2 | . . 2 Prevented . | . . . Parts Restored . | . . . Kills | -11 -10 -10 ------- Run | Yrd Mat Sub Combat Hostiles Destroyed 14 | . 13 1 Guns 14 | . 13 1 Classes Destroyed 10 | 2 7 1 Worker 2 | . 2 . Builder 2 | . 2 . Tunneler 4 | 1 3 . Hauler 2 | . 2 . Recycler 2 | 1 1 . Operator 1 | . 1 . Watcher 1 | . 1 . Swarmer 3 | . 3 . Grunt 10 | . 10 . Subdweller 1 | . . 1 Best Kill Streak 4 | 1 4 1 Combat Bots Only 3 | . 3 1 Max Kills in Single Turn 1 | 1 1 1 Gunslinging . | . . . Exploded . | . . . Melee . | . . . Uniques/NPCs Destroyed . | . . . Combat | -11 -10 -10 -------- Run | Yrd Mat Sub Hostile Shots Fired 97 | . 55 42 Missed 18 | . 12 6 Hits 79 | . 43 36 Projectile 79 | . 43 36 Damage Taken 1293 | . 509 784 Core 258 | . 131 127 Absorbed by Shields . | . . . Regen/Repaired (Parts) 187 | . 187 . Core Remaining (%) 100 | 100 . . Volleys Fired 98 | 5 73 20 Largest 2 | 2 2 2 Hottest 100 | 70 100 70 Shots Fired 192 | 10 142 40 Gun 189 | 10 139 40 Cannon . | . . . Launcher . | . . . Special 3 | . 3 . Kinetic 111 | 5 70 36 Thermal 81 | 5 72 4 Explosive . | . . . Electromagnetic . | . . . Robot Hit Streak 36 | 6 15 36 Robot Miss Streak 2 | 2 2 2 Penetration Max . | . . . Secondary Targets 1 | . . 1 Max Gunslinging Chain 1 | . . 1 Shots Hit Robots 144 | 7 100 37 Core Hits 51 | 3 41 7 Critical Kills . | . . . Critical Parts Destroyed . | . . . Critical Strikes 4 | . 3 1 Burn 4 | . 3 1 Melee Attacks . | . . . Impact . | . . . Slashing . | . . . Piercing . | . . . Sneak Attacks . | . . . Combat Hostiles . | . . . Follow-up Attacks . | . . . Damage Inflicted 1692 | 91 1273 328 Guns 1692 | 91 1273 328 Cannons . | . . . Explosions . | . . . Melee . | . . . Ramming . | . . . Kinetic 1008 | 42 687 279 Thermal 684 | 49 586 49 Explosive . | . . . Electromagnetic . | . . . Impact . | . . . Slashing . | . . . Piercing . | . . . Highest Corruption 1 | . 1 1 Average Corruption 1 | . 1 1 Corruption Purged . | . . . Corruption Blocked . | . . . Effects 5 | . 3 2 Message Errors 1 | . 1 . Matter Fused 1 | . . 1 Data Loss (minor) 2 | . 1 1 Weapon Failures 1 | . 1 . Overload Shots . | . . . Overflow Damage . | . . . Projectiles . | . . . Explosions . | . . . Melee . | . . . Knockbacks . | . . . Impact . | . . . Kinetic . | . . . Secondary . | . . . Self-Inflicted Damage . | . . . Shots . | . . . Rammed . | . . . Targets Rammed . | . . . Kicked . | . . . Crushed . | . . . Highest Temperature 126 | 27 126 . Average Temperature 31 | 12 32 . Received Heat Transfer 387 | . 261 126 Siege Activations . | . . . Martial Activations . | . . . Shielding Activations . | . . . Robots Disrupted . | . . . Combat Hostiles . | . . . Robots Corrupted . | . . . Combat Hostiles . | . . . Parts Fried . | . . . Impact Corruptions . | . . . Robots Melted . | . . . Combat Hostiles . | . . . Parts Melted 2 | . 2 . Heat Transferred 2331 | 148 1961 222 Parts Sabotaged . | . . . Parts Stolen . | . . . Parts Stripped . | . . . Power Chain Reactions . | . . . Alert | -11 -10 -10 ------- Run | Yrd Mat Sub Maximum Alert Level . | . . . Low Security (%) 100 | 100 100 . Level 1 . | . . . Level 2 . | . . . Level 3 . | . . . Level 4 . | . . . Level 5 . | . . . High Security . | . . . Max Security . | . . . Peak Influence 87 | 5 87 . Initial . | . . . Average 23 | 1 24 . Influence Increases 454 | 10 444 . Destroy 0b10 Robot/C 260 | . 260 . Destroy 0b10 Robot/NC 70 | 10 60 . Destroy Leader 66 | . 66 . Successful Hack 9 | . 9 . Select Force Hacks 30 | . 30 . Destroy Structure 4 | . 4 . Lose Combat Pursuer 15 | . 15 . Influence Decreases 454 | 10 442 2 Entered New Map 2 | . . 2 Time Decay 442 | 10 432 . Lost Part 10 | . 10 . Squads Dispatched 4 | . 4 . Investigation 2 | . 2 . Extermination . | . . . Reinforcement 2 | . 2 . Assault . | . . . Garrison . | . . . Intercept . | . . . Searches Triggered . | . . . Construction Impeded . | . . . Haulers Reinforced . | . . . Active Scanning Responses . | . . . Cargo Convoy Interrupts . | . . . Stealth | -11 -10 -10 --------- Run | Yrd Mat Sub Distress Signals 2 | . 2 . Communications Jammed . | . . . Distress Signals . | . . . Times Spotted 26 | . 24 2 Peak Tracking Total 3 | . 3 2 Tactical Retreats 1 | . 1 . Traps | -11 -10 -10 ------- Run | Yrd Mat Sub Traps Triggered 3 | . 3 . Indirectly . | . . . Trap Hack Attempts . | . . . Triggered . | . . . Disarmed . | . . . Reprogrammed . | . . . Reused . | . . . Traps Extracted . | . . . Installed . | . . . Triggered . | . . . Machines | -11 -10 -10 ---------- Run | Yrd Mat Sub Machines Disabled . | . . . Max in Single Turn . | . . . Machines Repaired . | . . . Machines Dismantled . | . . . Machines Sabotaged . | . . . Overloaded Fab Kills . | . . . Hacking | -11 -10 -10 --------- Run | Yrd Mat Sub Machines Accessed 9 | . 9 . Terminals 6 | . 6 . Fabricators . | . . . Repair Stations 1 | . 1 . Recycling Units 2 | . 2 . Scanalyzers . | . . . Garrison Access . | . . . Total Hacks 26 | . 26 . Successful 9 | . 9 . Failed 17 | . 17 . Catastrophic 1 | . 1 . Database Lockouts . | . . . Manual 17 | . 17 . Terminals 16 | . 16 . Fabricators . | . . . Repair Stations 4 | . 4 . Recycling Units 6 | . 6 . Scanalyzers . | . . . Garrison Access . | . . . Terminal Hacks . | . . . Fabricator Hacks . | . . . Repair Station Hacks 4 | . 4 . Scan Component 2 | . 2 . Repair 2 | . 2 . Recycling Unit Hacks . | . . . Scanalyzer . | . . . Garrison Access Hacks . | . . . Unauthorized Hacks 5 | . 5 . Terminals 4 | . 4 . Skim 4 | . 4 . Fabricators . | . . . Repair Stations . | . . . Recycling Units 1 | . 1 . Tunnel 1 | . 1 . Scanalyzers . | . . . Garrison Access . | . . . Data Cores Recovered . | . . . Used . | . . . Hacking Detections 8 | . 8 . Full Trace Events . | . . . Feedback Events . | . . . Feedback Blocked . | . . . Robot Schematics Acquired . | . . . Robots Built . | . . . Authchips . | . . . Time . | . . . Total Robot Build Rating . | . . . Part Schematics Acquired . | . . . Parts Built . | . . . Authchips . | . . . Time . | . . . Total Part Build Rating . | . . . Part Studies Acquired . | . . . Parts Repaired 2 | . 2 . Time 52 | . 52 . Parts Recycled . | . . . Recycled Matter . | . . . Retrieved Matter . | . . . Retrieved Components . | . . . Parts Scanalyzed . | . . . Part Schematics Acquired . | . . . Parts Damaged . | . . . Bothacking | -11 -10 -10 ------------ Run | Yrd Mat Sub Used RIF Installer . | . . . Robots Hacked . | . . . Non-combat . | . . . Combat . | . . . Robot Hacks Applied . | . . . Relay Couplers Released . | . . . Fabnet Peak Effective % . | . . . Robots Rewired . | . . . Allies Hacked . | . . . Hacks Repelled . | . . . Allies | -11 -10 -10 -------- Run | Yrd Mat Sub Total Allies . | . . . Largest Group . | . . . Highest-Rated Group . | . . . Highest-Rated Ally . | . . . Total Orders . | . . . Ally Attacks . | . . . Total Damage . | . . . Kills . | . . . Allies Corrupted . | . . . Allies Melted . | . . . Intel | -11 -10 -10 ------- Run | Yrd Mat Sub Active Infowar (turns) 2058 | 26 1791 241 Terrain 64 | . . 64 Seismic 1994 | 26 1791 177 Robot Analysis Total . | . . . Derelict Logs Recovered . | . . . Drone Launches . | . . . Drone Recoveries . | . . . Exploration | -11 -10 -10 ------------- Run | Yrd Mat Sub Turns Passed 2148 | 116 1791 241 Spaces Moved 860 | 55 696 109 Core 2 | 2 . . Treads 384 | 53 222 109 Legs . | . . . Wheels 474 | . 474 . Hover . | . . . Flight . | . . . Fastest Speed 50 | 50 110 160 Average Speed 182 | 156 187 160 Slowest Speed 480 | 160 480 160 Overloaded Moves . | . . . Propulsion Burnouts . | . . . Robots Hopped . | . . . Potential Cave-ins . | . . . Cave-ins Triggered . | . . . Exploration Rate (%) 35 | 5 91 9 Regions Visited 2 Branch Regions 1 Pre-discovered Areas 1 | . 1 . Known Exits Taken . | . . . Unknown Exits Taken 2 | 1 1 . Scrap Searched . | . . . Spaces Dug 3 | . 3 . Terrain Destroyed 3 | . 3 . Melee . | . . . Projectile 3 | . 3 . AOE . | . . . Terrain Rammed . | . . . Walls Destroyed . | . . . Machines Disabled . | . . . Actions | -11 -10 -10 --------- Run | Yrd Mat Sub Total 1241 | 72 1028 141 Wait 228 | 4 217 7 Move 858 | 54 695 109 Hop . | . . . Pick Up 23 | 2 21 . Fast Attach 14 | 7 7 . Attach 5 | . 1 4 Detach 1 | . 1 . Swap 7 | . 6 1 Drop 7 | . 7 . Fire 98 | 5 73 20 Melee . | . . . Ram . | . . . Kick . | . . . Crush . | . . . Escape Stasis . | . . . Rewire . | . . . Trap . | . . . Miscellaneous . | . . . Route ------- -11/Scrapyard -10/Materials (discovered 5 exits: [*Mat x3] / [*Min] / [*Sub]) -10/Subcaves History --------- Turn | Location | Event 18 | -11/Scrapyard | Discovered new exit (range 15) 117 | -11/Scrapyard | Entered Materials 307 | -10/Materials | Build established: Mutant 335 | -10/Materials | Discovered new exit (range 11) 611 | -10/Materials | Discovered new exit (range 13) 707 | -10/Materials | Discovered new exit (range 15) 1337 | -10/Materials | Discovered new exit (range 5) 1437 | -10/Materials | Core integrity fell below 50% 1619 | -10/Materials | Repaired Lgt. Treads 1646 | -10/Materials | Repaired Med. Laser 1897 | -10/Materials | Discovered new exit (range 7) 1908 | -10/Materials | Entered Subcaves 1909 | -10/Subcaves | Approached by a straggling Scientist 1941 | -10/Subcaves | A swath of the cavern ceiling suddenly collapsed 2116 | -10/Subcaves | Core integrity fell below 20% 2149 | -10/Subcaves | Destroyed by 14-U94(R) with Subdweller Laser Last Messages --------------- AMBIENT_HEAT=-10 GOAL=ESCAPE 01909_ HR-2BX(c): "Thank the algorithms! I was beginning to lose hope I'd never make it past all the Subs lurking out here." 01912_ HR-2BX(c): "Hey, let me tag along and I can get us both out of this nasty situation. At least I think I can... The group I got separated from was talking about a shortcut back to the UFD." A swath of the cavern ceiling suddenly collapses. HR-2BX(c): "I think it's somewhere north of here" 02097_ 5B-YXK(R) suffers critical hit (Burn). 02101_ System corrupted: Component data lost. 02103_ Med. Laser destroyed. 02105_ Assault Rifle destroyed. 02119_ Ion Engine destroyed. 02124_ System corrupted: Matter fused (-10). 02124_ 5B-YXK(R) destroyed. 02124_ Switching to secondary target: 14-U94(R). 02127_ Lgt. Treads destroyed. 02130_ 14-U94(R) affixes Scrap Shield Fragment to Scrap Shield. 02131_ Lgt. Treads destroyed. Map ----- +----------------------------------------------------+ | ?????????????????????????????????????????????????? | | ?????????????????????????????????????????????????? | | ?????????????????????????????????????????????????? | | ?????????????????????????????????????????????????? | | ?????????????????????????????????????????????????? | | ?????????????????????????????????????????????????? | | ?????????????????????????????????????????????????? | | ?????????????????????????????????????????????????? | | ?????????????????????????????????????????????????? | | ????????????????????????? ???????????????????????? | | ?????????????????????????????????????????????????? | | ????????????????????#???????? ? #????????????????? | | ??????????????????????????#??????????????????????? | | ??????????????????"?????????? ??????????????????? | | ????????????????????#????????????????????????????? | | ????????????????????????? ?#? ???? ??????????????? | | ??????????????? ????????? ##???????? ?????????? | | ???????????????????????? ???????? ?????????? | | ??????????????? ??? ????? ???????# ????????? | | ?????????????????????????? ??##### ????????? | | ???????????#?????????##???# ?## ????????? | | ?????????????"??????## #??# ## ????????? | | ?????????????#??????# ### #????????? | | ????????????????????## ## ? ##???????? | | ??????????????????????# #?# #??# ##?#####? | | ???????????##????#????# @#??# ##?# ## #? | | ?????????? ??????# ## !#??# ### #? | | ?????????????????# %#### ## ## | | ???????????????# # R # | | ?????????????????# # ## =%= #????? | | ???????????????# ?##?## ###### ##?????? | | ???????????????# ??????#####??#?## ##?????? | | ??????????????# ?????#??????#?????#### ##????? | | ?????????????# ????????#?????????????## #????? | | ???????????????????????????#????##????#### #????? | | ???????????????????#?????????????????????# #????? | | ????????????????? ??#?????????#?????#????# ####?? | | ????????????????????????????#??????????### ##? | | ???????????????????????????????????????# #? | | ?????????????????? ??????????#?????????# #? | | ?????????????????????????#?????????????# ## # | | ???????????????????????????????????????##"""### # | | ???????????????????????????????????????### ##??# # | | ???????????????????????????????????????#"# #????## | | ???????????????????????????????????????#"" ##????? | | ???????????????????????????????????????##" "# ##?? | | ????????????????????????????????????????#"""## ?? | | ????????????????????????????????????????#"##"## ?? | | ???????????????????????????????????????####" "# ## | | ???????????????????????????????????????#"#"#""# # | +----------------------------------------------------+ Best States ------------- Heat Dissipation 25 Energy Generation 10 Energy Capacity 250 Matter Stores 300 Matter Capacity 300 Sight Range 16 Terrain Scan Range 16 Terrain Scan Density 10 Evasion (%) 40 Recoil Reduction 2 Item Schematics ----------------- None Robot Schematics ------------------ None Fabricated ------------ Nothing Repaired ---------- Lgt. Treads | 9% | -10/Materials Med. Laser | 14% | -10/Materials Studied --------- None Alien Tech Used ----------------- None Achievements -------------- None Challenges ------------ None Game ------ Seed DamperEnhancedSheargun Manual? 0 Play Time 00:16:03 Cumulative 248.9 hours Start 2026.02.11 @ 16:43:35 End 2026.02.21 @ 12:27:53 Sessions 2 Manual Loads 0 Difficulty Rogue Special Mode None Game No. 106 Rogue 101 Adventurer 5 Explorer 0 Win Type - Total 7 Types 3/0/2/1/0/0/0/0/0/1 Lore% 71 Gallery% 69 Achievement% 61 Wizard Run 0 Options --------- Layout 0 ASCII 0 Keyboard 0 Movement Numpad Keybinds 0 Fullscreen 1 Font 18/SmallcapsGlow Map View 76x50 Zoom Use 0% Tactical HUD 1 Map Filters NONE Filters NONE Steam 1 RUN: 2902d0a0-c693-4853-8ec7-61374ee8ca66